bitfinex/quotes_SOLUSD_20240809
["timestamp","ask_amount","ask_price","bid_price","bid_amount"]
[1723204915209,15.9109,156.75,156.7,27.34]
[1723204915386,15.9109,156.75,156.71,27.34]
[1723204921217,15.9109,156.75,156.72,27.34]
[1723204921801,15.9109,156.75,156.7,0.12549]
[1723204921802,15.9109,156.75,156.74,27.34]
[1723204922002,16.5951,156.79,156.74,27.34]
[1723204922197,16.5951,156.79,156.75,27.34]
[1723204923503,16.5951,156.79,156.76,27.34]
[1723204923817,16.5951,156.79,156.77,27.34]
[1723204925211,16.5951,156.79,156.76,27.34]
[1723204925806,16.5951,156.79,156.75,27.46549]
[1723204926638,16.5951,156.79,156.73,27.34]
[1723204926797,16.5951,156.79,156.74,20.12549]
[1723204927808,45.52987991,156.79,156.72,27.34]
[1723204929117,27.34,156.77,156.7,27.34]
[1723204929417,27.34,156.76,156.69,27.34]
[1723204929597,6.2525,156.75,156.69,27.34]
[1723204930230,6.2525,156.75,156.71,27.34]
[1723204930724,6.2525,156.75,156.73,27.34]
[1723204930924,22.8476,156.79,156.73,27.34]
[1723204931099,22.8476,156.79,156.72,27.34]
[1723204932002,27.34,156.78,156.71,27.46549]
[1723204932214,27.34,156.75,156.68,27.34]
[1723204932421,27.34,156.74,156.67,27.34]
[1723204932809,6.4279,156.73,156.67,27.34]
[1723204933009,43.7229,156.72,156.6,7.7706362]
[1723204933316,43.7229,156.72,156.65,27.34]
[1723204933516,16.3829,156.72,156.67,27.34]
[1723204933819,16.3829,156.72,156.7,27.34]
[1723204934129,16.3829,156.72,156.64,27.34]
[1723204934130,21.8602,156.78,156.71,27.34]
[1723204934325,21.8602,156.78,156.73,27.34]
[1723204934827,21.8602,156.78,156.72,27.34]
[1723204935337,27.34,156.75,156.68,27.34]
[1723204935512,43.6429,156.75,156.68,27.34]
[1723204935706,16.3029,156.75,156.69,27.34]
[1723204935930,16.3029,156.75,156.71,27.34]
[1723204936115,16.3029,156.75,156.73,27.34]
[1723204936427,16.3029,156.75,156.74,27.34]
[1723204936616,16.3029,156.75,156.74,27.46549]
[1723204936817,6.5783,156.78,156.74,27.46549]
[1723204937019,6.5783,156.78,156.75,27.34]
[1723204937330,6.5783,156.78,156.74,27.46549]
[1723204937626,16.2411,156.79,156.76,27.34]
[1723204937825,16.2411,156.79,156.78,27.34]
[1723204938142,6.5362,156.82,156.78,27.46549]
[1723204938319,6.5362,156.82,156.8,27.34]
[1723204938632,6.5362,156.82,156.79,27.34]
[1723204939721,16.2411,156.83,156.81,27.34]
[1723204939908,6.0655,156.86,156.82,27.34]
[1723204940905,6.0655,156.86,156.8,0.12549]
[1723204941122,33.4055,156.86,156.79,27.34]
[1723204941311,33.4055,156.86,156.8,20.0]
[1723204941506,6.0655,156.86,156.81,27.34]
[1723204941922,6.0655,156.86,156.82,27.34]
[1723204943330,6.0655,156.86,156.83,27.34]
[1723204943720,6.0655,156.86,156.82,27.34]
[1723204944125,6.0655,156.86,156.81,27.34]
[1723204944823,6.0655,156.86,156.82,27.34]
[1723204952028,6.0655,156.86,156.8,47.34]
[1723204952230,6.0655,156.86,156.79,27.34]
[1723204952231,33.4055,156.86,156.79,27.34]
[1723204952543,33.4055,156.86,156.73,0.8414]
[1723204952544,28.93424365,156.85,156.78,27.34]
[1723204953148,28.93424365,156.85,156.72,27.34]
[1723204953149,15.4162,156.83,156.77,27.34]
[1723204953449,1.59446839,156.82,156.76,27.34]
[1723204953653,42.7562,156.83,156.77,27.34]
[1723204954183,15.4162,156.83,156.79,27.34]
[1723204954337,15.4162,156.83,156.73,1.27563828]
[1723204954338,15.4162,156.83,156.8,27.34]
[1723204954926,15.4162,156.83,156.82,27.34]
[1723204955348,15.4162,156.83,156.81,27.34]
[1723204955555,15.4162,156.83,156.8,27.34]
[1723204956155,15.4162,156.83,156.79,27.34]
[1723204956342,15.4162,156.83,156.73,0.12549]
[1723204956343,15.4162,156.83,156.78,27.34]
[1723204956734,15.4162,156.83,156.79,27.34]
[1723204957633,15.4162,156.83,156.81,27.34]
[1723204958455,15.4162,156.83,156.79,27.34]
[1723204958660,15.4162,156.83,156.78,27.46549]
[1723204958959,1.59437583,156.82,156.77,27.34]
[1723204959168,15.4162,156.83,156.76,27.46549]
[1723204959169,42.7562,156.83,156.76,27.46549]
[1723204959462,42.7562,156.83,156.77,20.0]
[1723204961704,42.7562,156.83,156.76,27.34]
[1723204962562,42.7562,156.83,156.77,27.34]
[1723204963855,42.7562,156.83,156.75,27.46549]
[1723204963856,28.93453602,156.82,156.75,27.46549]
[1723204964051,33.4115,156.81,156.75,27.46549]
[1723204964247,1.59462798,156.8,156.75,27.46549]
[1723204964454,1.59462798,156.8,156.75,0.12549]
[1723204964663,1.59472598,156.79,156.74,27.34]
[1723204964864,15.2797,156.78,156.74,27.34]
[1723204965077,15.2797,156.78,156.73,27.46549]
[1723204966070,15.2797,156.78,156.71,27.34]
[1723204966071,1.59489834,156.77,156.71,27.34]
[1723204966444,28.93489834,156.77,156.7,27.34]
[1723204966644,27.34,156.76,156.7,27.34]
[1723204966953,27.34,156.77,156.7,27.34]
[1723204967846,6.3555,156.76,156.69,27.46549]
[1723204968248,6.3555,156.76,156.7,20.0]
[1723204968459,6.3555,156.76,156.7,47.34]
[1723204968673,6.3555,156.76,156.71,27.46549]
[1723204969776,6.3555,156.76,156.7,20.0]
[1723204969777,6.3555,156.76,156.7,47.34]
[1723204970655,6.3555,156.76,156.71,27.34]
[1723204970862,6.3555,156.76,156.73,27.34]
[1723204971162,15.2797,156.78,156.75,27.34]
[1723204971770,15.2797,156.78,156.76,27.34]
[1723204972291,15.2797,156.78,156.75,27.34]
[1723204972462,15.2797,156.78,156.74,27.34]
[1723204972982,15.2797,156.78,156.73,27.34]
[1723204974680,15.2797,156.78,156.74,27.34]
[1723204976784,15.2797,156.78,156.73,27.34]
[1723204976982,15.2797,156.78,156.74,27.34]
[1723204977470,15.2797,156.78,156.73,27.34]
[1723204978363,15.2797,156.78,156.75,27.34]
[1723204978761,15.2797,156.78,156.77,27.34]
[1723204978967,27.34,156.84,156.77,27.34]
[1723204978968,16.0903,156.82,156.77,27.34]
[1723204979176,16.0903,156.82,156.8,27.34]
[1723204979571,16.0903,156.82,156.78,27.46549]
[1723204980891,16.0903,156.82,156.79,27.34]
[1723204982098,16.0903,156.82,156.81,27.34]
[1723204982395,6.2014,156.84,156.81,27.34]
[1723204982598,6.2014,156.84,156.82,27.34]
[1723204983169,6.2014,156.84,156.81,27.34]
[1723204983378,6.2014,156.84,156.8,27.46549]
[1723204983675,6.2014,156.84,156.81,27.34]
[1723204984075,6.2014,156.84,156.8,27.46549]
[1723204984892,6.2014,156.84,156.79,27.34]
[1723204985290,6.2014,156.84,156.73,2.11686728]
[1723204985291,6.2014,156.84,156.8,27.34]
[1723204986172,16.519,156.86,156.83,27.34]
[1723204986580,16.519,156.86,156.82,27.34]
[1723204986791,16.519,156.86,156.81,27.34]
[1723204987391,16.519,156.86,156.79,0.25098]
[1723204987392,16.519,156.86,156.8,27.34]
[1723204987968,16.519,156.86,156.81,27.34]
[1723204989573,16.519,156.86,156.82,27.34]
[1723204989768,16.519,156.86,156.81,27.34]
[1723204990081,16.519,156.86,156.8,27.34]
[1723204990472,16.519,156.86,156.79,0.25098]
[1723204990473,16.519,156.86,156.81,27.34]
[1723204990675,16.519,156.86,156.8,27.34]
[1723204991799,1.59414874,156.85,156.79,27.34]
[1723204992103,43.859,156.86,156.79,27.34]
[1723204992579,16.519,156.86,156.8,27.46549]
[1723204992895,16.519,156.86,156.8,27.34]
[1723204993079,1.59412081,156.85,156.78,27.46549]
[1723204993281,1.59412081,156.85,156.79,20.0]
[1723204993487,43.859,156.86,156.79,20.0]
[1723204993687,43.859,156.86,156.79,47.34]
[1723204994602,43.859,156.86,156.8,27.34]
[1723204995403,28.93426953,156.85,156.78,27.46549]
[1723204995610,22.2735,156.82,156.76,27.34]
[1723204995786,1.59458091,156.81,156.76,27.34]
[1723204996098,28.93458091,156.81,156.74,27.34]
[1723204996299,43.6936,156.78,156.71,27.34]
[1723204996493,28.93498841,156.77,156.71,27.34]
[1723204996708,28.93498841,156.77,156.64,33.89021911]
[1723204996709,33.3766,156.76,156.69,27.34]
[1723204997280,6.0366,156.76,156.7,27.34]
[1723204997474,6.0366,156.76,156.72,27.34]
[1723204998286,6.0366,156.76,156.73,27.34]
[1723204998687,6.0366,156.76,156.72,27.34]
[1723204999009,33.3766,156.76,156.69,27.34]
[1723204999182,33.3766,156.76,156.7,20.12549]
[1723204999585,33.3766,156.76,156.7,20.0]
[1723204999796,42.8334,156.74,156.67,27.34]
[1723205000307,27.34,156.73,156.66,27.34]
[1723205000691,27.34,156.72,156.65,27.34]
[1723205001008,15.9281,156.68,156.61,1.10898174]
[1723205001198,15.9281,156.68,156.53,0.8204782]
[1723205001199,27.34,156.66,156.54,10.00056967]
[1723205001410,27.34,156.65,156.58,27.34]
[1723205002295,27.34,156.62,156.54,1.10953154]
[1723205002489,27.34,156.61,156.54,27.34]
[1723205002794,27.34,156.59,156.53,0.8204782]
[1723205003103,27.34,156.61,156.54,27.34]
[1723205003303,28.93675097,156.6,156.53,28.1604782]
[1723205003611,20.12549,156.62,156.53,28.1604782]
[1723205003612,27.34,156.59,156.53,0.8204782]
[1723205003792,35.3,156.61,156.53,0.8204782]
[1723205003996,0.12549,156.62,156.53,36.1204782]
[1723205004308,65.25098,156.62,156.53,36.1204782]
[1723205004491,36.89691307,156.61,156.53,0.8204782]
[1723205004692,37.02240307,156.61,156.53,0.8204782]
[1723205004894,45.12549,156.6,156.53,0.8204782]
[1723205005793,35.3,156.59,156.53,0.8204782]
[1723205005995,22.5771,156.57,156.53,0.8204782]
[1723205006212,24.17435955,156.57,156.53,0.8204782]
[1723205006723,22.5771,156.57,156.53,0.8204782]
[1723205009088,1.59713466,156.56,156.53,0.8204782]
[1723205009289,22.5771,156.57,156.53,0.8204782]
[1723205012414,1.5971232,156.56,156.53,0.8204782]
[1723205012614,22.5771,156.57,156.53,0.8204782]
[1723205014918,16.4128,156.57,156.53,36.1204782]
[1723205015104,16.4128,156.57,156.55,35.3]
[1723205015814,6.0141,156.61,156.55,35.3]
[1723205016402,6.0141,156.61,156.54,0.12549]
[1723205016616,1.59678235,156.6,156.53,36.1204782]
[1723205016922,1.59678235,156.6,156.53,0.8204782]
[1723205017513,1.5970239,156.59,156.53,0.8204782]
[1723205018021,41.3141,156.61,156.53,0.8204782]
[1723205018225,6.0141,156.61,156.53,36.1204782]
[1723205018601,6.0141,156.61,156.54,0.12549]
[1723205018800,6.0141,156.61,156.55,35.3]
[1723205019420,6.0141,156.61,156.54,0.12549]
[1723205019623,6.0141,156.61,156.53,36.1204782]
[1723205020225,6.0141,156.61,156.54,0.12549]
[1723205020997,0.12549,156.6,156.53,0.8204782]
[1723205021204,65.37647,156.6,156.53,0.8204782]
[1723205021403,20.37647,156.6,156.53,0.8204782]
[1723205021624,45.0,156.59,156.53,0.8204782]
[1723205021813,0.12549,156.58,156.53,0.8204782]
[1723205022134,45.0,156.59,156.53,0.8204782]
[1723205022419,20.37647,156.6,156.53,0.8204782]
[1723205022420,20.25098,156.6,156.53,0.8204782]
[1723205022934,45.12549,156.59,156.53,0.8204782]
[1723205023129,20.25098,156.6,156.53,0.8204782]
[1723205023625,35.3,156.57,156.53,0.8204782]
[1723205023821,29.06734219,156.56,156.53,0.8204782]
[1723205024502,16.47449,156.58,156.53,0.8204782]
[1723205024503,27.47,156.57,156.53,0.8204782]
[1723205026518,27.47,156.56,156.53,0.8204782]
[1723205026711,27.47,156.55,156.53,0.8204782]
[1723205026909,27.47,156.56,156.53,0.8204782]
[1723205027322,27.47,156.55,156.53,0.8204782]
[1723205027822,0.12549,156.57,156.53,0.8204782]
[1723205027823,27.47,156.56,156.53,0.8204782]
[1723205028116,0.25098,156.57,156.53,0.8204782]
[1723205028117,27.47,156.57,156.53,0.8204782]
[1723205028326,47.47,156.57,156.53,0.8204782]
[1723205029706,27.47,156.55,156.53,0.8204782]
[1723205030411,72.72098,156.56,156.53,0.8204782]
[1723205030609,27.59549,156.55,156.53,0.8204782]
[1723205030912,27.47,156.55,156.53,0.8204782]
[1723205031215,27.47,156.56,156.53,0.8204782]
[1723205031425,27.47,156.55,156.53,0.8204782]
[1723205032515,27.47,156.56,156.53,0.8204782]
[1723205032817,20.0,156.57,156.53,0.8204782]
[1723205033402,47.47,156.57,156.53,0.8204782]
[1723205035327,16.349,156.58,156.53,28.2904782]
[1723205036407,16.349,156.58,156.53,0.8204782]
[1723205037722,6.6624805,156.59,156.56,27.47]
[1723205037932,16.471,156.62,156.57,27.47]
[1723205038222,16.471,156.62,156.59,27.47]
[1723205038423,6.1445,156.65,156.6,27.47]
[1723205039233,16.471,156.66,156.61,27.47]
[1723205039426,16.471,156.66,156.6,27.47]
[1723205040825,16.471,156.66,156.63,27.47]
[1723205041009,22.1004,156.7,156.64,27.47]
[1723205041205,6.66148758,156.69,156.64,27.47]
[1723205041528,27.47,156.67,156.6,27.47]
[1723205041743,1.59629671,156.66,156.59,27.47]
[1723205042032,34.13148758,156.69,156.62,27.47]
[1723205042210,20.0,156.68,156.63,27.47]
[1723205042409,20.0,156.68,156.62,27.47]
[1723205042626,1.59622915,156.67,156.6,27.47]
[1723205042939,29.06622915,156.67,156.6,27.47]
[1723205043300,47.47,156.68,156.6,27.47]
[1723205043532,6.66148758,156.69,156.64,27.47]
[1723205043828,22.1004,156.7,156.66,27.47]
[1723205044205,15.9559,156.7,156.66,27.47]
[1723205044426,15.9559,156.7,156.67,27.47]
[1723205044603,21.9234,156.74,156.67,27.47]
[1723205044809,49.3934,156.74,156.67,27.47]
[1723205045132,49.3934,156.74,156.66,27.47]
[1723205045328,27.47,156.73,156.66,27.47]
[1723205046123,49.3934,156.74,156.66,27.47]
[1723205046415,20.0,156.72,156.69,27.47]
[1723205046723,15.7899,156.74,156.71,27.47]
[1723205048033,15.7899,156.74,156.65,0.12549]
[1723205048246,49.06556345,156.73,156.65,27.47]
[1723205048808,49.06556345,156.73,156.66,27.47]
[1723205049924,20.0,156.73,156.67,27.47]
[1723205050238,15.7899,156.74,156.7,27.47]
[1723205050433,15.7899,156.74,156.71,27.47]
[1723205050744,15.7899,156.74,156.69,27.47]
[1723205050932,15.7899,156.74,156.65,0.96689]
[1723205050933,1.59530418,156.73,156.68,27.47]
[1723205051234,15.7899,156.74,156.67,27.47]
[1723205051415,15.7899,156.74,156.68,27.47]
[1723205051820,15.7899,156.74,156.69,27.47]
[1723205052341,15.7899,156.74,156.65,0.12549]
[1723205052640,49.31637407,156.73,156.65,27.47]
[1723205052842,27.47,156.72,156.65,27.47]
[1723205053015,1.59575218,156.71,156.65,27.47]
[1723205053218,1.59575218,156.7,156.65,27.47]
[1723205053433,20.0,156.71,156.65,27.47]
[1723205053615,20.0,156.71,156.66,27.47]
[1723205053811,43.2599,156.74,156.67,27.47]
[1723205054034,20.0,156.73,156.67,27.47]
[1723205054215,21.5955902,156.73,156.67,27.47]
[1723205054840,20.0,156.73,156.67,27.47]
[1723205055026,20.0,156.73,156.68,27.47]
[1723205056163,20.0,156.73,156.67,27.47]
[1723205056820,1.59552564,156.72,156.66,27.47]
[1723205057142,27.47,156.72,156.65,27.47]
[1723205057341,27.47,156.71,156.64,27.47]
[1723205057552,27.47,156.7,156.64,27.47]
[1723205057845,6.1509,156.71,156.65,27.47]
[1723205058052,6.1509,156.71,156.66,27.47]
[1723205058420,6.1509,156.71,156.65,27.47]
[1723205058622,6.1509,156.71,156.61,0.8414]
[1723205058623,6.1509,156.71,156.64,27.47]
[1723205058817,33.6209,156.71,156.64,27.47]
[1723205059634,6.1509,156.71,156.65,27.47]
[1723205059834,6.1509,156.71,156.66,27.47]
[1723205060341,6.1509,156.71,156.65,27.47]
[1723205061222,27.47,156.69,156.59,6.246]
[1723205061431,20.0,156.7,156.63,27.47]
[1723205061724,21.59589245,156.7,156.63,27.47]
[1723205061927,49.06589245,156.7,156.63,27.47]
[1723205063351,15.0981,156.68,156.62,27.47]
[1723205063545,15.0981,156.68,156.63,27.47]
[1723205063844,15.0981,156.68,156.65,27.47]
[1723205064340,15.0981,156.68,156.64,27.47]
[1723205065125,16.468,156.72,156.67,27.47]
[1723205065449,18.06355233,156.72,156.67,27.47]
[1723205065628,20.0,156.71,156.67,27.47]
[1723205066521,21.59557684,156.71,156.66,27.47]
[1723205066721,21.59557684,156.71,156.65,27.47]
[1723205066937,1.59576166,156.7,156.64,27.47]
[1723205067342,16.468,156.72,156.64,27.47]
[1723205067535,21.59577379,156.71,156.65,27.47]
[1723205070849,21.59577379,156.71,156.64,27.47]
[1723205071053,27.47,156.68,156.61,27.47]
[1723205071553,27.47,156.68,156.53,1.92983535]
[1723205071554,27.47,156.65,156.53,2.77123535]
[1723205071733,1.59647466,156.64,156.58,27.47]
[1723205072050,27.47,156.63,156.56,27.47]
[1723205072233,1.59668023,156.62,156.56,27.47]
[1723205072426,1.59668023,156.62,156.53,0.8204782]
[1723205072427,6.1547,156.6,156.53,0.8204782]
[1723205072631,27.47,156.57,156.53,0.8204782]
[1723205072829,27.47,156.56,156.53,0.8204782]
[1723205073337,43.4815,156.54,156.53,0.8204782]
[1723205073543,16.0115,156.54,156.53,0.8204782]
[1723205074357,43.73248,156.54,156.53,0.8204782]
[1723205074531,16.0115,156.54,156.53,0.8204782]
[1723205075351,36.13699,156.54,156.53,0.8204782]
[1723205075653,108.85797,156.54,156.47,27.47]
[1723205075833,108.85797,156.54,156.45,35.32]
[1723205075834,36.26248,156.54,156.45,35.32]
[1723205076153,36.0115,156.54,156.45,35.32]
[1723205076369,36.0115,156.54,156.47,35.32]
[1723205077655,36.0115,156.54,156.45,35.32]
[1723205077963,0.12549,156.53,156.46,20.0]
[1723205078138,36.0115,156.54,156.46,20.0]
[1723205080760,1.59768756,156.53,156.47,35.32]
[1723205080962,36.0115,156.54,156.47,35.32]
[1723205081253,36.0115,156.54,156.46,20.0]
[1723205081934,0.12549,156.53,156.46,20.0]
[1723205082267,6.3272,156.52,156.45,35.32]
[1723205082439,1.5978118,156.51,156.45,35.32]
[1723205082639,6.3272,156.52,156.43,35.32]
[1723205082841,6.3272,156.52,156.44,20.0]
[1723205083539,6.3272,156.52,156.45,80.69647]
[1723205083738,6.3272,156.52,156.47,35.32]
[1723205084459,6.3272,156.52,156.38,9.57653244]
[1723205084656,56.91796758,156.51,156.42,35.32]
[1723205084863,57.16894758,156.51,156.43,20.0]
[1723205085036,37.16894758,156.51,156.43,20.0]
[1723205085454,0.25098,156.51,156.43,20.0]
[1723205085663,65.25098,156.51,156.43,20.0]
[1723205085852,20.0,156.51,156.44,35.32]
[1723205087252,0.25098,156.5,156.43,20.0]
[1723205087447,15.0727,156.49,156.43,20.0]
[1723205089365,15.0727,156.49,156.38,0.8204782]
[1723205089366,35.32,156.47,156.38,0.8204782]
[1723205089538,1.59835664,156.46,156.38,0.8204782]
[1723205089864,6.3883,156.45,156.38,0.8204782]
[1723205090664,6.3883,156.45,156.39,35.32]
[1723205092456,6.3883,156.45,156.38,20.8204782]
[1723205094569,15.965,156.44,156.38,0.8204782]
[1723205094886,36.9186234,156.43,156.38,0.8204782]
[1723205095167,15.965,156.4,156.38,0.8204782]
[1723205095347,1.59899689,156.39,156.38,0.8204782]
[1723205096144,6.634,156.39,156.33,27.52]
[1723205096349,27.64549,156.38,156.31,27.52]
[1723205096542,27.64549,156.38,156.32,27.52]
[1723205096741,26.634,156.39,156.33,27.52]
[1723205097055,26.634,156.39,156.34,27.52]
[1723205097582,26.634,156.39,156.33,27.52]
[1723205097880,54.154,156.39,156.32,27.52]
[1723205098044,27.52,156.38,156.31,27.52]
[1723205098759,26.634,156.39,156.34,27.52]
[1723205099067,26.634,156.39,156.33,27.52]
[1723205099284,54.154,156.39,156.33,27.52]
[1723205099449,54.154,156.39,156.32,27.52]
[1723205099648,54.154,156.39,156.33,27.52]
[1723205099961,26.634,156.39,156.33,27.52]
[1723205100572,26.634,156.39,156.34,27.52]
[1723205100746,6.634,156.39,156.35,27.52]
[1723205100944,6.634,156.39,156.36,27.52]
[1723205101143,6.634,156.39,156.35,27.52]
[1723205101376,6.634,156.39,156.36,27.52]
[1723205102182,6.634,156.39,156.34,27.52]
[1723205102647,6.634,156.39,156.33,27.52]
[1723205102849,27.52,156.38,156.31,27.52]
[1723205103071,47.64549,156.38,156.31,27.52]
[1723205103372,20.0,156.38,156.33,27.52]
[1723205103674,6.634,156.39,156.34,27.52]
[1723205104047,6.634,156.39,156.35,27.52]
[1723205104667,6.634,156.39,156.37,27.52]
[1723205105545,6.634,156.39,156.36,27.52]
[1723205105774,6.634,156.39,156.35,27.52]
[1723205105974,6.634,156.39,156.34,27.52]
[1723205106149,6.634,156.39,156.37,27.52]
[1723205106353,15.965,156.4,156.37,27.52]
[1723205107760,15.965,156.4,156.38,27.52]
[1723205107963,15.965,156.4,156.37,27.52]
[1723205108161,15.965,156.4,156.39,27.52]
[1723205108783,15.965,156.4,156.38,27.52]
[1723205108983,15.965,156.4,156.36,27.52]
[1723205110472,15.965,156.4,156.35,27.52]
[1723205111185,15.965,156.4,156.34,27.52]
[1723205111458,15.965,156.4,156.35,27.52]
[1723205112160,15.965,156.4,156.34,27.52]
[1723205112364,29.11899227,156.39,156.32,27.52]
[1723205112567,29.11899227,156.39,156.33,20.0]
[1723205112865,29.11899227,156.39,156.32,27.52]
[1723205113195,1.59899227,156.39,156.33,27.52]
[1723205113364,43.485,156.4,156.33,27.52]
[1723205113558,15.965,156.4,156.34,27.52]
[1723205113764,15.965,156.4,156.36,27.52]
[1723205115384,1.59866649,156.39,156.35,27.52]
[1723205115700,1.59866649,156.39,156.34,27.52]
[1723205115875,15.965,156.4,156.35,27.52]
[1723205116764,43.0879,156.36,156.25,7.93439017]
[1723205116965,43.0879,156.36,156.24,1.11102005]
[1723205116966,27.52,156.35,156.28,27.52]
[1723205117184,20.0,156.35,156.29,27.52]
[1723205118374,27.52,156.31,156.22,0.8204782]
[1723205118585,45.77101904,156.3,156.22,0.8204782]
[1723205118878,1.59981567,156.29,156.23,27.52]
[1723205119263,27.52,156.26,156.22,0.8204782]
[1723205119464,27.52,156.27,156.22,0.8204782]
[1723205119688,33.9553,156.28,156.22,0.8204782]
[1723205119875,6.4353,156.28,156.22,28.3404782]
[1723205120075,33.9553,156.28,156.22,0.8204782]
[1723205120476,27.52,156.27,156.22,0.8204782]
[1723205120795,33.9553,156.28,156.22,0.8204782]
[1723205121680,27.52,156.25,156.22,0.8204782]
[1723205122568,27.52,156.26,156.22,0.8204782]
[1723205122885,27.52,156.25,156.22,0.8204782]
[1723205123073,46.85145091,156.27,156.22,0.8204782]
[1723205123074,27.52,156.26,156.22,0.8204782]
[1723205123591,72.77098,156.27,156.22,0.8204782]
[1723205123894,20.0,156.26,156.22,0.8204782]
[1723205124102,47.52,156.26,156.22,0.8204782]
[1723205126175,27.52,156.25,156.22,0.8204782]
[1723205127593,15.0799,156.24,156.22,0.8204782]
[1723205128892,29.12055322,156.23,156.11,6.67797119]
[1723205129098,27.52,156.22,156.15,27.52]
[1723205129266,29.12082913,156.21,156.15,27.52]
[1723205129469,15.0799,156.24,156.19,27.52]
[1723205129774,15.0799,156.24,156.2,27.52]
[1723205130282,15.0799,156.24,156.19,27.52]
[1723205130970,15.0799,156.24,156.2,27.52]
[1723205131369,15.0799,156.24,156.23,27.52]
[1723205131565,22.2717,156.28,156.23,27.52]
[1723205131870,22.2717,156.28,156.17,1.53114404]
[1723205131871,15.8364,156.28,156.27,27.52]
[1723205132070,15.8364,156.28,156.25,27.52]
[1723205132772,15.8364,156.28,156.26,27.52]
[1723205133787,15.8364,156.28,156.27,27.52]
[1723205134181,22.6203,156.32,156.27,27.52]
[1723205135073,16.5061,156.32,156.29,27.52]
[1723205135273,16.5061,156.32,156.3,27.52]
[1723205135584,16.5061,156.32,156.27,27.52]
[1723205137710,16.5061,156.32,156.28,27.52]
[1723205137999,28.50361533,156.36,156.31,27.52]
[1723205138204,15.5556,156.36,156.35,27.52]
[1723205138368,6.2203,156.4,156.35,27.52]
[1723205138369,21.7759,156.4,156.35,27.52]
[1723205138576,21.7759,156.4,156.36,27.52]
[1723205138771,21.7759,156.4,156.35,27.52]
[1723205139072,33.915,156.38,156.31,27.52]
[1723205139279,27.52,156.36,156.29,27.52]
[1723205139489,1.59943854,156.35,156.29,27.52]
[1723205139675,27.52,156.35,156.28,27.52]
[1723205140206,27.52,156.36,156.29,27.52]
[1723205140371,20.0,156.35,156.29,27.52]
[1723205140576,21.9551,156.33,156.27,27.52]
[1723205140777,1.59970102,156.32,156.26,27.52]
[1723205140986,27.52,156.32,156.25,27.52]
[1723205141279,49.4751,156.33,156.26,27.52]
[1723205141680,51.07489971,156.33,156.26,27.52]
[1723205142171,49.4751,156.33,156.26,27.52]
[1723205143099,1.59979817,156.32,156.26,27.52]
[1723205143301,21.9551,156.33,156.27,27.52]
[1723205143683,49.4751,156.33,156.26,27.52]
[1723205144207,49.4751,156.33,156.27,27.52]
[1723205145374,21.9551,156.33,156.27,27.52]
[1723205145803,21.9551,156.33,156.28,27.52]
[1723205146002,21.9551,156.33,156.29,27.52]